[Event "RUS-ch Women Blitz 2019"]
[Site "Sochi"]
[Date "2019.10.17"]
[Round "5.12"]
[White "Sukhareva, Evgeniya"]
[Black "Afonasieva, Anna"]
[Result "1/2-1/2"]
[ECO "D14"]
[WhiteElo "2122"]
[BlackElo "2312"]
[Annotator "NA RC"]
[PlyCount "79"]
[EventDate "2019.10.17"]
[EventType "swiss"]
[EventCountry "RUS"]
[SourceTitle "playchess.com"]
[Source "ChessBase"]
[SourceQuality "1"]
[TimeControl "180+2"]

1. d4 {[%emt 0:00:00]} d5 {[%emt 0:00:00]} 2. Nf3 {[%emt 0:00:00]} Nf6 {[%emt 0:00:00]} 3. c4 {[%emt 0:00:01]} c6 {[%emt 0:00:01]} 4. cxd5 {[%emt 0:00:03]} cxd5 {[%emt 0:00:01]} 5. Nc3 {[%emt 0:00:01]} Nc6 {[%emt 0:00:01]} 6. Bf4 {[%emt 0:00:01]} Bf5 {[%emt 0:00:01]} 7. e3 {[%emt 0:00:00]} e6 {[%emt 0:00:01]} 8. Bd3 {[%emt 0:00:01]} Bg6 {[%emt 0:00:15]} 9. O-O {[%emt 0:00:05]} Bd6 {[%emt 0:00:02]} 10. Ne5 {[%emt 0:00:01]} O-O {[%emt 0:00:06]} 11. Rc1 {[%emt 0:00:10]} Bxe5 {[%emt 0:00:07]} 12. Bxe5 {[%emt 0:00:03]} Nxe5 {[%emt 0:00:02]} 13. dxe5 {[%emt 0:00:01]} Nd7 {[%emt 0:00:01]} 14. Bxg6 {[%emt 0:00:12]} hxg6 {[%emt 0:00:02]} 15. f4 {[%emt 0:00:01]} a6 {[%emt 0:00:02]} 16. Rf3 {[%emt 0:00:09]} Rc8 {[%emt 0:00:31]} 17. Qd2 {[%emt 0:00:10]} Nc5 {[%emt 0:00:07]} 18. Rff1 {[%emt 0:00:12]} b5 {[%emt 0:00:04]} 19. Qd4 {[%emt 0:00:06]} Qe7 {[%emt 0:00:26]} 20. e4 {[%emt 0:00:25]} dxe4 {[%emt 0:00:08]} 21. Nxe4 {[%emt 0:00:01]} Nxe4 {[%emt 0:00:02]} 22. Qxe4 {[%emt 0:00:02] [#]} Qa7+ $17 {[%emt 0:00:10]} 23. Kh1 {[%emt 0:00:03]} Qf2 {[%emt 0:00:23]} 24. Qb1 {[%emt 0:00:01]} Qe3 {[%emt 0:00:10]} 25. h3 {[%emt 0:00:07]} Rfd8 {[%emt 0:00:08]} 26. Rxc8 {[%emt 0:00:18]} Rxc8 {[%emt 0:00:01]} 27. Qd1 {[%emt 0:00:01]} Rc4 {[%emt 0:00:12]} 28. Qd8+ {[%emt 0:00:04]} Kh7 {[%emt 0:00:01]} 29. Qh4+ {[%emt 0:00:02]} Kg8 {[%emt 0:00:01]} 30. Qf2 {[%emt 0:01:20]} Qe4 {[%emt 0:00:01]} 31. Qh4 {[%emt 0:00:03]} Qd4 {[%emt 0:00:07]} 32. Qf2 {[%emt 0:00:04]} Qe4 {[%emt 0:00:10]} 33. Qh4 {[%emt 0:00:03]} Rc2 {[%emt 0:00:10]} 34. Qd8+ {[%emt 0:00:06]} Kh7 {[%emt 0:00:01]} 35. Qh4+ {[%emt 0:00:01]} Kg8 {[%emt 0:00:01]} 36. Qg5 {[%emt 0:00:05]} Rxb2 {[%emt 0:00:12]} 37. Rd1 {[%emt 0:00:05]} Rb1 {[%emt 0:00:04]} 38. Qd8+ {[%emt 0:00:01]} Kh7 {[%emt 0:00:01]} 39. Qh4+ {[%emt 0:00:01]} Kg8 {[%emt 0:00:00]} 40. Qd8+ {[%emt 0:00:01]} 1/2-1/2

[Event "RUS-ch Women Blitz 2019"]
[Site "Sochi"]
[Date "2019.10.20"]
[Round "5.12"]
[White "Khatmullina, Dilara"]
[Black "Mamontova, Anastasia"]
[Result "0-1"]
[ECO "A05"]
[WhiteElo "1843"]
[BlackElo "2002"]
[Annotator "NA"]
[PlyCount "163"]
[EventDate "2019.10.17"]
[EventType "swiss"]
[EventCountry "RUS"]
[SourceTitle "playchess.com"]
[Source "ChessBase"]
[SourceQuality "1"]
[TimeControl "180+2"]

1. Nf3 {[%emt 0:00:00]} Nf6 {[%emt 0:00:03]} 2. g3 {[%emt 0:00:00]} b6 {[%emt 0:00:03]} 3. Bg2 {[%emt 0:00:01]} Bb7 {[%emt 0:00:01]} 4. O-O {[%emt 0:00:02]} c5 {[%emt 0:00:01]} 5. d3 {[%emt 0:00:10]} e6 {[%emt 0:00:01]} 6. e4 {[%emt 0:00:01]} Be7 {[%emt 0:00:06]} 7. Re1 {[%emt 0:00:01]} O-O {[%emt 0:00:07]} 8. Nbd2 {[%emt 0:00:03]} d5 {[%emt 0:00:04]} 9. e5 {[%emt 0:00:03]} Nfd7 {[%emt 0:00:04]} 10. Nf1 {[%emt 0:00:01]} Nc6 {[%emt 0:00:04]} 11. h4 {[%emt 0:00:03]} Qc7 {[%emt 0:00:08]} 12. Bf4 {[%emt 0:00:04]} Rae8 {[%emt 0:00:15]} 13. N1h2 {[%emt 0:00:03]} Qc8 {[%emt 0:00:10]} 14. Ng4 {[%emt 0:00:07]} f6 {[%emt 0:00:05]} 15. Qe2 {[%emt 0:00:24]} fxe5 {[%emt 0:00:17]} 16. Ngxe5 {[%emt 0:00:13]} Ndxe5 {[%emt 0:00:01]} 17. Nxe5 {[%emt 0:00:08]} Bf6 {[%emt 0:00:12]} 18. Qg4 {[%emt 0:00:17]} Nd4 {[%emt 0:00:23]} 19. Rac1 {[%emt 0:00:13]} Qd8 {[%emt 0:00:17]} 20. h5 {[%emt 0:00:07]} Qe7 {[%emt 0:00:57]} 21. h6 {[%emt 0:00:31]} g6 {[%emt 0:00:01]} 22. c3 {[%emt 0:00:25]} Nf5 {[%emt 0:00:01]} 23. Nf3 {[%emt 0:00:13]} Bc8 {[%emt 0:00:17]} 24. Be5 {[%emt 0:00:05]} Bxe5 {[%emt 0:00:05]} 25. Nxe5 {[%emt 0:00:01]} Nxh6 {[%emt 0:00:01]} 26. Qa4 {[%emt 0:00:08]} Qf6 {[%emt 0:00:01]} 27. Rc2 {[%emt 0:00:08]} Re7 {[%emt 0:00:01]} 28. Nc6 {[%emt 0:00:07]} Ref7 {[%emt 0:00:03]} 29. Nxa7 {[%emt 0:00:01]} Bd7 {[%emt 0:00:03]} 30. Qh4 {[%emt 0:00:09]} Qxh4 {[%emt 0:00:02]} 31. gxh4 {[%emt 0:00:01]} Ng4 {[%emt 0:00:02]} 32. f3 {[%emt 0:00:06]} Nh6 {[%emt 0:00:01]} 33. Bh3 {[%emt 0:00:03]} Ra8 {[%emt 0:00:03]} 34. Bxe6 {[%emt 0:00:04]} Bxe6 {[%emt 0:00:01]} 35. Rxe6 {[%emt 0:00:01]} Raxa7 {[%emt 0:00:02]} 36. Rxb6 {[%emt 0:00:02]} Rxa2 {[%emt 0:00:01]} 37. Rb8+ {[%emt 0:00:01]} Kg7 {[%emt 0:00:01]} 38. Rc8 {[%emt 0:00:01]} Ra5 {[%emt 0:00:01]} 39. Rd8 {[%emt 0:00:02]} c4 {[%emt 0:00:02]} 40. dxc4 {[%emt 0:00:03]} dxc4 {[%emt 0:00:01]} 41. Kg2 {[%emt 0:00:01]} Nf5 {[%emt 0:00:01]} 42. Kh3 {[%emt 0:00:02]} Ne3 {[%emt 0:00:02]} 43. Rf2 {[%emt 0:00:03]} Raf5 {[%emt 0:00:02]} 44. Re8 {[%emt 0:00:03]} Rxf3+ {[%emt 0:00:03]} 45. Rxf3 {[%emt 0:00:02]} Rxf3+ {[%emt 0:00:01]} 46. Kh2 {[%emt 0:00:00]} Nd1 {[%emt 0:00:01]} 47. Re7+ {[%emt 0:00:02]} Kf6 {[%emt 0:00:01]} 48. Rc7 {[%emt 0:00:01]} Rf4 {[%emt 0:00:01]} 49. Kg3 {[%emt 0:00:02]} Re4 {[%emt 0:00:01]} 50. Rc6+ {[%emt 0:00:01]} Kg7 {[%emt 0:00:03]} 51. Rc7+ {[%emt 0:00:01]} Kh6 {[%emt 0:00:01]} 52. Rb7 {[%emt 0:00:03]} Re2 {[%emt 0:00:04]} 53. Rb4 {[%emt 0:00:03]} Nxb2 {[%emt 0:00:02]} 54. Kf3 {[%emt 0:00:01]} Rc2 {[%emt 0:00:01]} 55. Ke4 {[%emt 0:00:03]} Rh2 {[%emt 0:00:05]} 56. Kd5 {[%emt 0:00:03]} Kh5 {[%emt 0:00:05]} 57. Rb7 {[%emt 0:00:05]} h6 {[%emt 0:00:01]} 58. Rb6 {[%emt 0:00:02]} Kxh4 {[%emt 0:00:02]} 59. Rxg6 {[%emt 0:00:01]} h5 {[%emt 0:00:00]} 60. Rb6 {[%emt 0:00:03]} Nd3 {[%emt 0:00:02]} 61. Kxc4 {[%emt 0:00:03]} Ne5+ {[%emt 0:00:02]} 62. Kd5 {[%emt 0:00:02]} Nd7 {[%emt 0:00:06]} 63. Rb4+ {[%emt 0:00:00]} Kg3 {[%emt 0:00:02]} 64. Kd6 {[%emt 0:00:02]} Nf6 {[%emt 0:00:01]} 65. Ke6 {[%emt 0:00:01]} Ng4 {[%emt 0:00:01]} 66. c4 {[%emt 0:00:03]} Rc2 {[%emt 0:00:02]} 67. Rb3+ {[%emt 0:00:03]} Kg2 {[%emt 0:00:00]} 68. Kd5 {[%emt 0:00:03]} h4 {[%emt 0:00:01]} 69. Rb8 {[%emt 0:00:02]} h3 {[%emt 0:00:00]} 70. Rg8 {[%emt 0:00:02]} Kg3 {[%emt 0:00:01]} 71. Rh8 {[%emt 0:00:02]} h2 {[%emt 0:00:01]} 72. Ke4 {[%emt 0:00:02]} Nf2+ {[%emt 0:00:01]} 73. Ke3 {[%emt 0:00:02]} Nh3 {[%emt 0:00:02]} 74. Rg8+ {[%emt 0:00:01]} Kh4 {[%emt 0:00:02]} 75. Rh8+ {[%emt 0:00:01]} Kg4 {[%emt 0:00:01]} 76. Rg8+ {[%emt 0:00:02]} Ng5 {[%emt 0:00:01]} 77. Rh8 {[%emt 0:00:02]} Nh3 {[%emt 0:00:11]} 78. Rg8+ {[%emt 0:00:00]} Kf5 {[%emt 0:00:00]} 79. Rf8+ {[%emt 0:00:06]} Ke6 {[%emt 0:00:01]} 80. Rf1 {[%emt 0:00:02]} Ng1 {[%emt 0:00:01]} 81. Rf8 {[%emt 0:00:03]} h1=Q {[%emt 0:00:02]} 82. Kd4 {Ke5+} 0-1

[Event "RUS-ch Women Blitz 2019"]
[Site "Sochi"]
[Date "2019.10.17"]
[Round "6.1"]
[White "Voit, Daria"]
[Black "Semenova, Elena"]
[Result "1/2-1/2"]
[ECO "E06"]
[WhiteElo "2336"]
[BlackElo "2282"]
[Annotator "RC"]
[PlyCount "64"]
[EventDate "2019.10.17"]
[EventType "swiss"]
[EventCountry "RUS"]
[SourceTitle "playchess.com"]
[Source "ChessBase"]
[SourceQuality "1"]
[TimeControl "180+2"]

1. d4 {[%emt 0:00:00]} Nf6 {[%emt 0:00:00]} 2. Nf3 {[%emt 0:00:00]} d5 {[%emt 0:00:00]} 3. c4 {[%emt 0:00:01]} e6 {[%emt 0:00:00]} 4. g3 {[%emt 0:00:01]} Be7 {[%emt 0:00:02]} 5. Bg2 {[%emt 0:00:01]} O-O {[%emt 0:00:01]} 6. O-O {[%emt 0:00:02]} dxc4 {[%emt 0:00:02]} 7. Qc2 {[%emt 0:00:00]} a6 {[%emt 0:00:03]} 8. Qxc4 {[%emt 0:00:01]} b5 {[%emt 0:00:01]} 9. Qc2 {[%emt 0:00:01]} Bb7 {[%emt 0:00:01]} 10. Bd2 {[%emt 0:00:01]} Be4 {[%emt 0:00:23]} 11. Qc1 {[%emt 0:00:01]} c6 {[%emt 0:00:04]} 12. Nc3 {[%emt 0:00:17]} Bxf3 {[%emt 0:00:05]} 13. Bxf3 {[%emt 0:00:03]} Qxd4 {[%emt 0:00:03]} 14. Rd1 {[%emt 0:00:14]} Qb6 {[%emt 0:00:21]} 15. Be3 {[%emt 0:00:11]} Qc7 {[%emt 0:00:14]} 16. Ne4 {[%emt 0:00:39]} Nd5 {[%emt 0:00:17]} 17. Bc5 {[%emt 0:00:02]} Nd7 {[%emt 0:00:19]} 18. Bxe7 {[%emt 0:00:37]} Nxe7 {[%emt 0:00:01]} 19. Nc5 {[%emt 0:00:21]} Nxc5 {[%emt 0:00:12]} 20. Qxc5 {[%emt 0:00:01]} Rfd8 {[%emt 0:00:02]} 21. b4 {[%emt 0:00:19]} h6 {[%emt 0:00:15]} 22. Rac1 {[%emt 0:00:11]} Rxd1+ {[%emt 0:00:04]} 23. Rxd1 {[%emt 0:00:01]} Rd8 {[%emt 0:00:02]} 24. Rxd8+ {[%emt 0:00:13]} Qxd8 {[%emt 0:00:00]} 25. Bxc6 {[%emt 0:00:02]} Nxc6 {[%emt 0:00:16]} 26. Qxc6 {[%emt 0:00:01]} Qd1+ {[%emt 0:00:10]} 27. Kg2 {[%emt 0:00:01]} g6 {[%emt 0:00:13]} 28. Qxa6 {[%emt 0:00:17]} Qxe2 {[%emt 0:00:06]} 29. a3 {[%emt 0:00:01]} Qe4+ {[%emt 0:00:04]} 30. Kg1 {[%emt 0:00:01]} Qe1+ {[%emt 0:00:02]} 31. Kg2 {[%emt 0:00:01]} Qe4+ {[%emt 0:00:02]} 32. Kg1 {[%emt 0:00:01]} Qe1+ {[%emt 0:00:01]} 1/2-1/2

[Event "RUS-ch Women Blitz 2019"]
[Site "Sochi"]
[Date "2019.10.17"]
[Round "6.2"]
[White "Kovanova, Baira"]
[Black "Karavaeva, Olga"]
[Result "1-0"]
[ECO "A06"]
[WhiteElo "2344"]
[BlackElo "2260"]
[Annotator "RC"]
[PlyCount "105"]
[EventDate "2019.10.17"]
[EventType "swiss"]
[EventCountry "RUS"]
[SourceTitle "playchess.com"]
[Source "ChessBase"]
[SourceQuality "1"]
[TimeControl "180+2"]

1. Nf3 {[%emt 0:00:00]} d5 {[%emt 0:00:00]} 2. g3 {[%emt 0:00:00]} c6 {[%emt 0:00:01]} 3. Bg2 {[%emt 0:00:01]} Nf6 {[%emt 0:00:04]} 4. O-O {[%emt 0:00:03]} Bf5 {[%emt 0:00:05]} 5. d3 {[%emt 0:00:01]} e6 {[%emt 0:00:12]} 6. Nbd2 {[%emt 0:00:08]} Nbd7 {[%emt 0:00:04]} 7. Qe1 {[%emt 0:00:04]} h6 {[%emt 0:00:07]} 8. e4 {[%emt 0:00:01]} dxe4 {[%emt 0:00:01]} 9. dxe4 {[%emt 0:00:00]} Bh7 {[%emt 0:00:04]} 10. Qe2 {[%emt 0:00:02]} Bc5 {[%emt 0:00:06]} 11. b3 {[%emt 0:00:20]} O-O {[%emt 0:00:06]} 12. Bb2 {[%emt 0:00:01]} Qc7 {[%emt 0:00:11]} 13. h3 {[%emt 0:00:17]} Rad8 {[%emt 0:00:04]} 14. e5 {[%emt 0:00:09]} Nd5 {[%emt 0:00:08]} 15. Ne4 {[%emt 0:00:04]} Be7 {[%emt 0:00:09]} 16. Rad1 {[%emt 0:00:08]} Nc5 {[%emt 0:00:07]} 17. Nfd2 {[%emt 0:00:30]} Nb4 {[%emt 0:00:20]} 18. Nxc5 {[%emt 0:00:23]} Bxc5 {[%emt 0:00:02]} 19. Ne4 {[%emt 0:00:01]} Be7 {[%emt 0:00:23]} 20. a3 {[%emt 0:00:01]} Na6 {[%emt 0:00:05]} 21. b4 {[%emt 0:00:06]} Qb6 {[%emt 0:00:18]} 22. c4 {[%emt 0:00:19]} Qc7 {[%emt 0:00:15]} 23. c5 {[%emt 0:00:07]} Bxe4 {[%emt 0:00:08]} 24. Bxe4 {[%emt 0:00:05]} Rxd1 {[%emt 0:00:03]} 25. Rxd1 {[%emt 0:00:01]} Rd8 {[%emt 0:00:01]} 26. Bd3 {[%emt 0:00:25]} Qc8 {[%emt 0:00:12]} 27. Bc1 {[%emt 0:00:03]} Bg5 {[%emt 0:00:23]} 28. Bxg5 {[%emt 0:00:06]} hxg5 {[%emt 0:00:01]} 29. Qh5 {[%emt 0:00:05]} g6 {[%emt 0:00:02]} 30. Qxg5 {[%emt 0:00:01]} Nc7 {[%emt 0:00:02]} 31. Kg2 {[%emt 0:00:06]} Nd5 {[%emt 0:00:04]} 32. h4 {[%emt 0:00:07]} Qd7 {[%emt 0:00:08]} 33. h5 {[%emt 0:00:01]} Qe7 {[%emt 0:00:01]} 34. Qg4 {[%emt 0:00:05]} Kg7 {[%emt 0:00:02]} 35. hxg6 {[%emt 0:00:02]} f5 {[%emt 0:00:01]} 36. exf6+ {[%emt 0:00:02]} Qxf6 {[%emt 0:00:01]} 37. Qf3 {[%emt 0:00:15]} Qxf3+ 38. Kxf3 {[%emt 0:00:00]} Nc3 {[%emt 0:00:03]} 39. Rd2 {[%emt 0:00:04]} Nb5 {[%emt 0:00:02]} 40. Ke2 {[%emt 0:00:03]} Nxa3 {[%emt 0:00:01]} 41. Be4 {[%emt 0:00:01]} Rxd2+ {[%emt 0:00:03]} 42. Kxd2 {[%emt 0:00:01]} Nc4+ {[%emt 0:00:01]} 43. Kc3 {[%emt 0:00:00]} Ne5 {[%emt 0:00:01]} 44. f4 {[%emt 0:00:01]} Nxg6 {[%emt 0:00:01]} 45. Kd4 {[%emt 0:00:01]} Ne7 {[%emt 0:00:02]} 46. Ke5 Kf7 47. Kd6 {[%emt 0:00:02]} Nd5 {[%emt 0:00:01]} 48. b5 {[%emt 0:00:03]} cxb5 {[%emt 0:00:02]} 49. f5 {[%emt 0:00:02]} Nc3 {[%emt 0:00:03]} 50. fxe6+ {[%emt 0:00:01]} Ke8 {[%emt 0:00:01]} 51. Bg6+ {[%emt 0:00:01]} Kf8 {[%emt 0:00:01]} 52. e7+ {[%emt 0:00:01]} Kg7 {[%emt 0:00:01]} 53. e8=Q 1-0

[Event "RUS-ch Women Blitz 2019"]
[Site "Sochi"]
[Date "2019.10.17"]
[Round "6.3"]
[White "Lysenko, Margarita"]
[Black "Ambartsumova, Karina"]
[Result "0-1"]
[ECO "D35"]
[WhiteElo "2243"]
[BlackElo "2341"]
[Annotator "NA RC"]
[PlyCount "152"]
[EventDate "2019.10.17"]
[EventType "swiss"]
[EventCountry "RUS"]
[SourceTitle "playchess.com"]
[Source "ChessBase"]
[SourceQuality "1"]
[TimeControl "180+2"]

1. d4 {[%emt 0:00:00]} Nf6 {[%emt 0:00:00]} 2. c4 {[%emt 0:00:00]} e6 {[%emt 0:00:01]} 3. Nc3 {[%emt 0:00:02]} d5 {[%emt 0:00:01]} 4. cxd5 {[%emt 0:00:03]} exd5 {[%emt 0:00:01]} 5. Bg5 {[%emt 0:00:01]} c6 {[%emt 0:00:01]} 6. e3 {[%emt 0:00:04]} Be7 {[%emt 0:00:01]} 7. Bd3 {[%emt 0:00:02]} Nbd7 {[%emt 0:00:07]} 8. Qc2 {[%emt 0:00:07]} h6 {[%emt 0:00:01]} 9. Bf4 {[%emt 0:00:49]} Nh5 {[%emt 0:00:45]} 10. Be5 {[%emt 0:00:02]} Nhf6 {[%emt 0:00:36]} 11. Bf4 {[%emt 0:00:02]} Nf8 {[%emt 0:00:04]} 12. h3 {[%emt 0:00:01] D36: Queen's Gambit Declined: Exchange Variation: Main line (5 Bg5 c6 6 Qc2)} Bd6 {[%emt 0:00:15]} 13. Bxd6 (13. Be5 Bxe5 14. dxe5 N6d7 15. f4 Ne6 16. Nf3 b5 17. O-O Qb6 18. Qf2 b4 19. Ne2 c5 {1-0 (35) Korobov,A (2699)-Javakhadze,Z (2415) Konya 2015}) 13... Qxd6 {[%emt 0:00:01]} 14. Nf3 {[%emt 0:00:14]} N8d7 {[%emt 0:00:19]} 15. g4 {[%emt 0:00:18]} Nb6 $146 {[%emt 0:00:02]} ({Predecessor:} 15... b6 16. O-O-O Bb7 17. Kb1 a6 18. Rhe1 {1-0 (30) Gislason,G (2351)-Brynjarsson,H (1949) Reykjavik 2009}) 16. Ne5 {[%emt 0:00:07]} Qe7 {[%emt 0:00:38]} 17. O-O-O {[%emt 0:00:21]} Be6 {[%emt 0:00:00]} 18. f4 {[%emt 0:00:01]} O-O-O {[%emt 0:00:11]} 19. Kb1 {[%emt 0:00:26]} Kb8 {[%emt 0:00:01]} 20. Na4 {[%emt 0:00:01]} Nxa4 {[%emt 0:00:04]} 21. Qxa4 {[%emt 0:00:01]} Nd7 {[%emt 0:00:02]} 22. Rc1 {[%emt 0:00:36]} Nxe5 {[%emt 0:00:22]} 23. dxe5 {[%emt 0:00:08]} Bc8 {[%emt 0:00:01]} 24. Rc3 {[%emt 0:00:12]} f6 {[%emt 0:00:01]} 25. exf6 {[%emt 0:00:07]} Qxf6 {[%emt 0:00:00]} 26. Ra3 {[%emt 0:00:02]} a6 {[%emt 0:00:01]} 27. Rc1 {[%emt 0:00:02]} Rhe8 {[%emt 0:00:02]} 28. Qb4 $2 {[%emt 0:00:01]} (28. Rb3 $11 Rxe3 29. Rxc6 Re1+ 30. Kc2) 28... Ka8 $2 {[%emt 0:00:03]} (28... Rxe3 $17 29. Bxa6 Rxa3 30. bxa3 Re8) 29. Qb6 {[%emt 0:00:02]} Rd6 {[%emt 0:00:06]} 30. Rb3 {[%emt 0:00:03]} Qd8 {[%emt 0:00:01]} 31. Qb4 {[%emt 0:00:02]} Rde6 {[%emt 0:00:01]} 32. Bxa6 {[%emt 0:00:02]} (32. e4 $14) 32... Qe7 {[%emt 0:00:03]} 33. Qb6 {[%emt 0:00:02]} Rxe3 {[%emt 0:00:05]} 34. Bd3 {[%emt 0:00:03]} Kb8 {[%emt 0:00:02]} 35. Ra3 {[%emt 0:00:01]} Re1 {[%emt 0:00:03]} 36. Qa7+ {[%emt 0:00:02]} Kc7 {[%emt 0:00:00]} 37. Qa5+ {[%emt 0:00:00]} Kd6 {[%emt 0:00:03]} 38. Qc5+ {[%emt 0:00:02]} Kc7 {[%emt 0:00:01]} 39. Qa5+ {[%emt 0:00:01]} Kd6 {[%emt 0:00:00]} 40. Rac3 {[%emt 0:00:03]} Rxc1+ {[%emt 0:00:01]} 41. Rxc1 {[%emt 0:00:01]} Qe3 {[%emt 0:00:01]} 42. Qb4+ {[%emt 0:00:03]} Kc7 {[%emt 0:00:01]} 43. Bc2 {[%emt 0:00:04]} (43. Bg6 $11 Re6 44. Bf5) 43... d4 {[%emt 0:00:01]} (43... Qxh3 $17 44. f5 Qg3) 44. Qc4 {[%emt 0:00:03]} Rd8 {[%emt 0:00:03]} 45. Qf7+ {[%emt 0:00:02]} Rd7 {[%emt 0:00:00]} 46. Qf8 {[%emt 0:00:01]} d3 {[%emt 0:00:01]} 47. Bb3 {[%emt 0:00:01]} d2 {[%emt 0:00:02]} 48. Rd1 {[%emt 0:00:00]} Qe4+ {[%emt 0:00:01]} 49. Bc2 {[%emt 0:00:02] [#]} Qd4 $1 {[%emt 0:00:02]} 50. Qe8 {[%emt 0:00:05]} b6 {[%emt 0:00:01]} 51. f5 {[%emt 0:00:01]} Ba6 {[%emt 0:00:02]} 52. Qf8 {[%emt 0:00:05]} Be2 {[%emt 0:00:04]} 53. Qa3 {[%emt 0:00:02]} Bxd1 {[%emt 0:00:02]} 54. Bxd1 {[%emt 0:00:01]} Qe4+ {[%emt 0:00:03]} 55. Ka1 {[%emt 0:00:01]} Qe1 {[%emt 0:00:06]} 56. Qb3 {[%emt 0:00:01]} Re7 {[%emt 0:00:04]} 57. Kb1 {[%emt 0:00:01]} Re3 {[%emt 0:00:02]} 58. Qc2 {[%emt 0:00:02]} Re7 {[%emt 0:00:02]} 59. h4 {[%emt 0:00:03]} Qf2 {[%emt 0:00:03]} 60. g5 {[%emt 0:00:02]} hxg5 {[%emt 0:00:01]} 61. hxg5 {[%emt 0:00:01]} Rf7 {[%emt 0:00:05]} 62. f6 {[%emt 0:00:04]} gxf6 {[%emt 0:00:02]} 63. g6 {[%emt 0:00:01]} Rd7 {[%emt 0:00:02]} 64. Qe4 {[%emt 0:00:04]} Qd4 {[%emt 0:00:03]} 65. Qf3 {[%emt 0:00:02]} Qd3+ {[%emt 0:00:02]} 66. Qxd3 {[%emt 0:00:01]} Rxd3 {[%emt 0:00:00]} 67. Kc2 {[%emt 0:00:02]} Rg3 {[%emt 0:00:01]} 68. Bh5 {[%emt 0:00:01]} Rg5 {[%emt 0:00:02]} 69. g7 {[%emt 0:00:03]} Rxg7 {[%emt 0:00:02]} 70. Kxd2 {[%emt 0:00:01]} Rg2+ {[%emt 0:00:01]} 71. Be2 {[%emt 0:00:01]} Kd6 {[%emt 0:00:00]} 72. Ke3 {[%emt 0:00:01]} Ke5 {[%emt 0:00:02]} 73. a4 {[%emt 0:00:03]} c5 {[%emt 0:00:02]} 74. b3 {[%emt 0:00:02]} Rg3+ {[%emt 0:00:01]} 75. Bf3 {[%emt 0:00:01]} f5 {[%emt 0:00:00]} 76. Kf2 {[%emt 0:00:02]} Kf4 {[%emt 0:00:01]} 0-1

[Event "RUS-ch Women Blitz 2019"]
[Site "Sochi"]
[Date "2019.10.20"]
[Round "6.5"]
[White "Semenova, Elena"]
[Black "Lysenko, Margarita"]
[Result "0-1"]
[ECO "B53"]
[WhiteElo "2282"]
[BlackElo "2243"]
[Annotator "NA"]
[PlyCount "176"]
[EventDate "2019.10.17"]
[EventType "swiss"]
[EventCountry "RUS"]
[SourceTitle "playchess.com"]
[Source "ChessBase"]
[SourceQuality "1"]
[TimeControl "180+2"]

1. e4 {[%emt 0:00:00]} c5 {[%emt 0:00:00]} 2. Nf3 {[%emt 0:00:00]} d6 {[%emt 0:00:00]} 3. d4 {[%emt 0:00:01]} cxd4 4. Qxd4 {[%emt 0:00:01]} Nc6 {[%emt 0:00:05]} 5. Bb5 {[%emt 0:00:00]} Bd7 {[%emt 0:00:07]} 6. Qd3 {[%emt 0:00:01]} g6 {[%emt 0:00:28]} 7. c4 {[%emt 0:00:11]} Bg7 {[%emt 0:00:02]} 8. Nc3 {[%emt 0:00:01]} Nf6 {[%emt 0:00:07]} 9. O-O {[%emt 0:00:04]} O-O {[%emt 0:00:03]} 10. h3 {[%emt 0:00:08]} h6 {[%emt 0:00:10]} 11. Rb1 {[%emt 0:00:12]} a6 {[%emt 0:00:10]} 12. Bxc6 {[%emt 0:00:04]} bxc6 {[%emt 0:00:05]} 13. b4 {[%emt 0:00:13]} Qc7 {[%emt 0:00:24]} 14. Be3 {[%emt 0:00:07]} Rfd8 {[%emt 0:00:20]} 15. a4 {[%emt 0:00:05]} e5 {[%emt 0:00:10]} 16. a5 {[%emt 0:00:03]} Rdb8 {[%emt 0:00:27]} 17. Bb6 {[%emt 0:00:03]} Qb7 {[%emt 0:00:08]} 18. Qxd6 {[%emt 0:00:11]} Ne8 {[%emt 0:00:01]} 19. Qd3 {[%emt 0:00:08]} Be6 {[%emt 0:00:01]} 20. Na4 {[%emt 0:00:11]} Qe7 {[%emt 0:00:28]} 21. Bc5 {[%emt 0:00:02]} Qf6 {[%emt 0:00:11]} 22. Nb6 {[%emt 0:00:07]} Ra7 {[%emt 0:00:01]} 23. Rbd1 {[%emt 0:00:06]} Rab7 {[%emt 0:00:02]} 24. Qe3 {[%emt 0:00:08]} g5 {[%emt 0:00:03]} 25. Nh2 {[%emt 0:00:04]} h5 {[%emt 0:00:02]} 26. Rd3 {[%emt 0:00:09]} Qg6 {[%emt 0:00:03]} 27. Nf3 {[%emt 0:00:09]} g4 {[%emt 0:00:03]} 28. Nh4 Qf6 29. Nf5 {[%emt 0:00:15]} Bxf5 {[%emt 0:00:11]} 30. exf5 {[%emt 0:00:02]} Bh6 {[%emt 0:00:01]} 31. Qe4 {[%emt 0:00:11]} Qg7 {[%emt 0:00:02]} 32. hxg4 {[%emt 0:00:08]} hxg4 {[%emt 0:00:03]} 33. g3 {[%emt 0:00:05]} Nf6 {[%emt 0:00:01]} 34. Qxe5 {[%emt 0:00:09]} Re8 {[%emt 0:00:00]} 35. Qc3 {[%emt 0:00:05]} Qg5 {[%emt 0:00:05]} 36. Be3 {[%emt 0:00:06]} Qg7 {[%emt 0:00:00]} 37. Bxh6 {[%emt 0:00:02]} Qxh6 {[%emt 0:00:01]} 38. Qd2 {[%emt 0:00:07]} Qh5 {[%emt 0:00:04]} 39. Re1 {[%emt 0:00:12]} Rbe7 {[%emt 0:00:03]} 40. Rde3 {[%emt 0:00:07]} Rxe3 {[%emt 0:00:04]} 41. Rxe3 {[%emt 0:00:01]} Rf8 {[%emt 0:00:02]} 42. Qd4 {[%emt 0:00:06]} Qxf5 {[%emt 0:00:02]} 43. Re5 {[%emt 0:00:05]} Qb1+ {[%emt 0:00:03]} 44. Kg2 {[%emt 0:00:01]} Qg6 {[%emt 0:00:02]} 45. Qf4 {[%emt 0:00:05]} Nh7 {[%emt 0:00:01]} 46. Nd7 {[%emt 0:00:03]} Rd8 {[%emt 0:00:03]} 47. Re7 {[%emt 0:00:04]} f6 {[%emt 0:00:02]} 48. b5 {[%emt 0:00:06]} cxb5 {[%emt 0:00:01]} 49. cxb5 {[%emt 0:00:01]} axb5 50. a6 Qd3 {[%emt 0:00:02]} 51. Rxh7 {[%emt 0:00:06]} Kxh7 {[%emt 0:00:02]} 52. Nxf6+ {[%emt 0:00:01]} Kg6 {[%emt 0:00:01]} 53. Ne4 {[%emt 0:00:05]} Qd5 {[%emt 0:00:03]} 54. Kg1 {[%emt 0:00:02]} Qd1+ {[%emt 0:00:01]} 55. Kg2 {[%emt 0:00:01]} Qf3+ {[%emt 0:00:04]} 56. Qxf3 {[%emt 0:00:01]} gxf3+ {[%emt 0:00:01]} 57. Kxf3 {[%emt 0:00:01]} b4 {[%emt 0:00:01]} 58. Ke3 {[%emt 0:00:03]} b3 {[%emt 0:00:01]} 59. Nc3 {[%emt 0:00:02]} b2 {[%emt 0:00:01]} 60. a7 {[%emt 0:00:01]} Ra8 {[%emt 0:00:02]} 61. Kd2 {[%emt 0:00:02]} Rxa7 {[%emt 0:00:01]} 62. Kc2 {[%emt 0:00:01]} Rf7 {[%emt 0:00:05]} 63. f4 {[%emt 0:00:03]} Rb7 {[%emt 0:00:04]} 64. Kb1 {[%emt 0:00:02]} Kf5 {[%emt 0:00:01]} 65. Na4 {[%emt 0:00:02]} Rb3 {[%emt 0:00:02]} 66. Nxb2 {[%emt 0:00:04]} Rxg3 {[%emt 0:00:03]} 67. Kc2 {[%emt 0:00:01]} Kxf4 {[%emt 0:00:00]} 68. Kd2 {[%emt 0:00:02]} Ke4 {[%emt 0:00:03]} 69. Nd1 {[%emt 0:00:05]} Kd4 {[%emt 0:00:03]} 70. Nf2 {[%emt 0:00:01]} Rg2 {[%emt 0:00:01]} 71. Ke2 {[%emt 0:00:01]} Rg3 {[%emt 0:00:01]} 72. Nd1 {[%emt 0:00:01]} Ke4 {[%emt 0:00:02]} 73. Nf2+ {[%emt 0:00:01]} Kf4 {[%emt 0:00:01]} 74. Nd3+ {[%emt 0:00:03]} Ke4 {[%emt 0:00:01]} 75. Nf2+ Kd4 76. Kd2 {[%emt 0:00:02]} Ra3 {[%emt 0:00:04]} 77. Ke2 {[%emt 0:00:02]} Ke5 {[%emt 0:00:04]} 78. Nd3+ {[%emt 0:00:02]} Ke4 {[%emt 0:00:01]} 79. Nf2+ {[%emt 0:00:01]} Kf4 {[%emt 0:00:02]} 80. Nd3+ {[%emt 0:00:01]} Ke4 {[%emt 0:00:02]} 81. Nf2+ Kd4 82. Kd2 {[%emt 0:00:02]} Ra2+ {[%emt 0:00:02]} 83. Ke1 {[%emt 0:00:02]} Ke3 {[%emt 0:00:04]} 84. Ng4+ {[%emt 0:00:10]} Kf3 {[%emt 0:00:05]} 85. Ne5+ {[%emt 0:00:01]} Ke4 {[%emt 0:00:02]} 86. Nc4 {[%emt 0:00:04]} Kd3 {[%emt 0:00:01]} 87. Ne5+ {[%emt 0:00:00]} Kd4 {[%emt 0:00:04]} 88. Nf3+ {[%emt 0:00:04]} Ke3 {[%emt 0:00:01]} 0-1